Cogmind - Beta 13 @@@ ROGUE MODE // 2024.04.08 @ 05:23:12 Player: CatPlusPlus Result: Destroyed by L-61 Swordsman with Power Sword Performance ------------- Evolutions (7) 3500 Regions Visited (23) 4600 Robots Destroyed (146) 730 Value Destroyed (4468) 4468 Prototype IDs (66) 1320 Alien Tech Used (1) 200 Bonus (4313) 4313 TOTAL SCORE: 19131 Bonus ------- Triggered Max Security 1000 High Alert Combat Kills 811 Follower Combat Kills 102 Aligned with FarCom 300 Met Data Miner 300 Met Imprinter 300 Met Warlord at Base 500 MAIN.C Attacked Warlord 500 Scanned by Researcher 500 Cogmind --------- Core Integrity 0/1300 Matter 182/300 Energy 92/100 System Corruption 48% Temperature Cool (4) Movement Core (50) Location -3/Testing Parts ------- > --- POWER (2) -------- (None) > --- PROPULSION (6) --- (None) > --- UTILITY (12) ----- (None) > --- WEAPON (2) ------- (None) > --- INVENTORY (5) ---- Improved Plasma Cutter Enhanced Force Lance Peak State ------------ > --- POWER ------------ Light Antimatter Reactor Micro Antimatter Reactor > --- PROPULSION ------- Biometal Medium Treads Biometal Medium Treads Biometal Medium Treads Biometal Medium Treads Biometal Medium Treads Biometal Medium Treads > --- UTILITY ---------- Large Storage Unit Structural Scanner Spectral Analyzer Advanced Transmission Jammer Graphene Brace System Mapper Deep Network Scanner Improved System Shield Ghost Barrier Mobile Refinery Mk. CCLXVII Combat Drone Bay > --- WEAPON ----------- Proton Burst Cannon Enhanced Force Lance > --- INVENTORY -------- Makeshift Power Source Biometal Medium Treads Biometal Medium Treads Advanced Heat Sink Experimental Terrain Scan Processor Launcher Loader Antimissile System Compact HERF Cannon Vortex Driver Vortex Driver Tiamat Missile Launcher Micro-nuke Launcher Improved Plasma Cutter Heavy Flail [Rating: 167] Favorites ----------- Power Light Deuterium Engine Engine Light Deuterium Engine Power Core Micro Fission Core Reactor Light Particle Reactor Propulsion Improved VTOL Module Treads Light Treads Hover Unit Improved Antigrav System Flight Unit Improved VTOL Module Utility Huge Storage Unit Device Structural Scanner Storage Huge Storage Unit Processor Improved Targeting Computer Hackware System Mapper Protection Improved Light Armor Plating Weapon Heavy Assault Rifle Energy Gun Heavy Particle Gun Energy Cannon Cooled Particle Cannon Ballistic Gun Heavy Assault Rifle Launcher Tiamat Missile Launcher Special Weapon Mining Laser Impact Weapon Heavy Flail Slashing Weapon Great Axe Piercing Weapon Enhanced Force Lance Build | -11 -10 -10 -10 -9 -8 -7 -7 -7 -7 -6 -6 -6 -6 -6 -5 -5 -5 -5 -5 -4 -4 -3 -3 ------- Run | Yrd Mat Min Exi Min Mat Fac Low Low Dat Pro Fac Low Low Zio Pro Fac Upp Upp War Pro Fac Res Tes Slots Evolved 14 | . . . . . 4 2 . . . . 2 . . . . 2 . . . . 2 2 . Power 1 | . . . . . . . . . . . . . . . . 1 . . . . . . . Propulsion 3 | . . . . . 2 1 . . . . . . . . . . . . . . . . . Utility 10 | . . . . . 2 1 . . . . 2 . . . . 1 . . . . 2 2 . Weapon . | . . . . . . . . . . . . . . . . . . . . . . . . Parts Attached 278 | 7 16 2 . 5 64 9 5 8 2 8 5 3 6 9 5 18 4 9 11 11 11 49 11 Power 18 | 1 1 . . 1 4 . . . . . . . . . . 5 . . . . 1 5 . Engine 7 | 1 1 . . 1 3 . . . . . . . . . . 1 . . . . . . . Core 6 | . . . . . 1 . . . . . . . . . . 4 . . . . 1 . . Reactor 5 | . . . . . . . . . . . . . . . . . . . . . . 5 . Propulsion 57 | 2 3 . . . 27 1 . . . . . . . 1 1 4 . . 2 . 1 14 1 Treads 33 | 2 3 . . . 19 . . . . . . . . 1 . . . . . . . 7 1 Leg . | . . . . . . . . . . . . . . . . . . . . . . . . Wheel . | . . . . . . . . . . . . . . . . . . . . . . . . Hover 9 | . . . . . 3 . . . . . . . . . . 1 . . . . . 5 . Flight 15 | . . . . . 5 1 . . . . . . . . 1 3 . . 2 . 1 2 . Utility 90 | 2 3 1 . 2 14 6 2 4 1 2 4 2 . 8 . 3 4 5 4 3 7 13 . Device 56 | 1 1 . . 2 8 2 1 3 . 2 1 2 . 7 . 1 3 5 4 2 4 7 . Storage 7 | 1 1 1 . . 2 1 . . . . . . . . . . . . . . . 1 . Processor 8 | . 1 . . . 1 1 . 1 . . . . . . . . . . . . 2 2 . Hackware 7 | . . . . . 1 1 . . . . 2 . . . . 1 . . . . . 2 . Protection 12 | . . . . . 2 1 1 . 1 . 1 . . 1 . 1 1 . . 1 1 1 . Artifact . | . . . . . . . . . . . . . . . . . . . . . . . . Weapon 113 | 2 9 1 . 2 19 2 3 4 1 6 1 1 6 . 4 6 . 4 5 8 2 17 10 Energy Gun 7 | . . . . . 6 . . . . . . . . . . . . . . . . . 1 Energy Cannon 33 | . . . . . 1 . 1 2 . 3 . . 3 . 1 2 . 2 2 2 . 10 4 Ballistic Gun 16 | 2 5 1 . 1 7 . . . . . . . . . . . . . . . . . . Ballistic Cannon . | . . . . . . . . . . . . . . . . . . . . . . . . Launcher 18 | . 3 . . 1 1 1 . . . . 1 . . . 1 1 . . 1 2 1 1 4 Special Weapon 1 | . 1 . . . . . . . . . . . . . . . . . . . . . . Impact Weapon 5 | . . . . . . . . . 1 3 . . . . . . . . 1 . . . . Slashing Weapon 22 | . . . . . 4 . . . . . . 1 3 . 2 3 . 2 1 4 1 1 . Piercing Weapon 11 | . . . . . . 1 2 2 . . . . . . . . . . . . . 5 1 Special Melee Weapon . | . . . . . . . . . . . . . . . . . . . . . . . . Unidentified Prototypes 23 | . . . . . 8 . . . . . 2 1 . 2 . 1 . . 5 . . 3 1 Parts Lost 29 | . 2 . . . 3 . . . 1 . . . . . . . . . . . . 7 16 Power 4 | . 1 . . . 1 . . . . . . . . . . . . . . . . 1 1 Propulsion 8 | . . . . . 1 . . . . . . . . . . . . . . . . 2 5 Utility 12 | . 1 . . . 1 . . . . . . . . . . . . . . . . 4 6 Weapon 5 | . . . . . . . . . 1 . . . . . . . . . . . . . 4 Highest Loss Streak 16 | . 1 . . . 2 . . . 1 . . . . . . . . . . . . 4 16 To Critical Strikes 1 | . . . . . . . . . . . . . . . . . . . . . . . 1 Average Slot Usage (%) 96 | . 99 100 100 99 94 99 100 100 100 100 100 97 93 95 97 94 94 94 94 94 93 92 70 Engine 7 | . 14 14 14 14 6 7 7 7 7 7 6 6 6 6 6 4 . . . . . . . Core 2 | . . . . . 2 . . . . . . . . . . 3 11 11 11 11 10 3 . Treads 21 | . 28 28 28 28 33 . . . . . . . . 2 . . . . . . . 19 19 Flight 9 | . . . . . 2 38 38 38 38 38 33 32 31 31 34 29 27 27 27 27 25 4 . Device 9 | . 5 . . 4 11 17 7 7 . 14 12 12 12 11 12 10 10 15 16 15 15 20 16 Storage 9 | . 14 14 14 14 9 7 7 7 7 7 6 6 6 6 6 5 5 5 5 5 5 4 3 Processor 7 | . 7 14 14 9 1 . 7 7 15 15 13 12 12 12 12 11 11 5 5 5 10 5 2 Hackware 5 | . . . . . . 11 15 14 7 . 13 12 12 12 12 16 16 16 16 16 15 16 9 Protection 2 | . . . . . 8 . . . 7 . . . . . . . . . . . 2 1 2 Energy Gun 2 | . . . . . 7 . . . . . . . . . . . . . . . . . . Ballistic Gun 11 | . 27 28 28 27 5 . . . . . . . . . . . . . . . . . . Impact Weapon 1 | . . . . . . . . . . 6 6 6 6 6 6 5 5 5 4 5 5 1 . Slashing Weapon 2 | . . . . . 4 11 7 7 7 7 6 6 5 6 5 4 5 4 5 4 4 1 . Naked Turns 25 | . . . . . . . . . . . . . . . . . . . . . . . 25 Heaviest Build 119 | 13 29 89 89 99 119 93 29 22 25 25 29 24 24 26 24 31 31 30 30 30 38 86 77 Greatest Support 210 | 40 40 40 40 40 82 25 25 25 25 25 25 25 25 25 25 34 34 34 36 33 35 210 210 Greatest Overweight (x) 39 | . . 2 2 2 39 3 1 . . . 1 . . 1 . 9 . . . . 1 2 4 Average Overweight (x) . | . . . 2 2 1 . . . . . . . . . . . . . . . . . . Largest Inventory Capacity 25 | 8 15 25 25 25 25 25 10 10 10 10 10 10 10 10 10 10 10 10 10 10 10 15 15 Average Capacity 18 | 7 11 18 25 25 24 10 10 10 10 10 10 10 10 10 10 10 10 10 10 10 10 13 12 Most Carried 25 | 3 15 21 25 25 25 19 10 10 10 10 10 10 10 10 10 10 10 10 10 10 10 15 14 Average Carried 17 | 2 9 16 23 24 24 10 10 9 8 9 9 9 10 9 10 9 9 9 9 10 9 13 11 Final Capacity 25 | 8 15 25 25 25 25 10 10 10 10 10 10 10 10 10 10 10 10 10 10 10 10 15 5 Final Carried 25 | 3 15 21 25 25 20 10 10 10 10 9 10 10 10 10 10 10 10 10 10 10 10 14 2 Class Distribution -------------------- 56% | Mutant 8% | Wizard-Sprinter 7% | Hacker-Scout 6% | Scavenger-Mutant 5% | Wizard-Assassin 5% | Hacker-Sprinter 3% | Wizard-Ninja Dominant Class ---------------- Mutant | -10/Materials Mutant | -10/Mines Mutant | -10/Exiles Mutant | -9/Mines Mutant | -8/Materials Hacker-Sprinter | -7/Factory Hacker-Sprinter | -7/Lower Caves Hacker-Sprinter | -7/Lower Caves Sprinter | -7/Data Miner Scout | -6/Proximity Caves Hacker-Sprinter | -6/Factory Hacker-Scout | -6/Lower Caves Hacker-Scout | -6/Lower Caves Hacker-Scout | -6/Zion Hacker-Scout | -5/Proximity Caves Wizard-Sprinter | -5/Factory Wizard-Sprinter | -5/Upper Caves Wizard-Ninja | -5/Upper Caves Wizard-Sprinter | -5/Warlord Wizard-Sprinter | -4/Proximity Caves Wizard-Ninja | -4/Factory Wizard-Assassin | -3/Research Wizard-Assassin | -3/Testing Resources | -11 -10 -10 -10 -9 -8 -7 -7 -7 -7 -6 -6 -6 -6 -6 -5 -5 -5 -5 -5 -4 -4 -3 -3 ----------- Run | Yrd Mat Min Exi Min Mat Fac Low Low Dat Pro Fac Low Low Zio Pro Fac Upp Upp War Pro Fac Res Tes Matter Collected 4786 | 301 548 99 . 41 1223 155 80 72 . 5 23 175 20 112 110 160 55 155 68 202 305 766 111 Remotely . | . . . . . . . . . . . . . . . . . . . . . . . . Salvage Created 5399 | 99 500 61 . 41 1943 186 58 35 28 5 23 132 . . 31 87 24 . . 96 199 1329 522 Parts 298 | 5 42 . . 5 111 16 1 2 3 2 2 10 . . 6 3 . . . 17 11 49 13 Haulers Intercepted 11 | . 2 . . . 6 2 . . . . . . . . . . . . . . . 1 . Recyclers Shooed 3 | 2 . . . . . . . . . . . . . . . . . . . . . 1 . Parts Field Recycled . | . . . . . . . . . . . . . . . . . . . . . . . . Retrieved Matter . | . . . . . . . . . . . . . . . . . . . . . . . . Parts Self-Destructed 27 | . . . . . . . 2 1 . 2 . . . . 10 . . . . 12 . . . Prevented 1 | . . . . . . . . 1 . . . . . . . . . . . . . . . Kills | -11 -10 -10 -10 -9 -8 -7 -7 -7 -7 -6 -6 -6 -6 -6 -5 -5 -5 -5 -5 -4 -4 -3 -3 ------- Run | Yrd Mat Min Exi Min Mat Fac Low Low Dat Pro Fac Low Low Zio Pro Fac Upp Upp War Pro Fac Res Tes Combat Hostiles Destroyed 92 | . 13 . . 3 25 1 . . . 1 . . . . 5 4 . . . 12 4 11 13 Melee 5 | . . . . . . 1 . . . 1 . . . . . . . . . 2 . 1 . Guns 34 | . 8 . . 1 25 . . . . . . . . . . . . . . . . . . Cannons 7 | . . . . . . . . . . . . . . . . . . . . . . 7 . AOE 45 | . 5 . . 2 . . . . . . . . . . 5 4 . . . 10 4 2 13 Classes Destroyed 20 | 2 6 . . . 5 1 1 . . 1 . . . . . . . . . . . 1 3 Worker 6 | . . . . . 1 1 . . . . . . . . . 1 . . . . . 3 . Builder 7 | . 1 . . . 2 . . . . . . . . . . . . . . . 1 3 . Tunneler 4 | 2 1 . . 1 . . . . . . . . . . . . . . . . . . . Hauler 11 | . 2 . . . 6 2 . . . . . . . . . . . . . . . 1 . Recycler 9 | 1 . 1 . . 2 . . . . . . . . . . . . . . . 1 4 . Mechanic 2 | . . . . . . . . . . . . . . . . . . . . . . . 2 Operator 8 | . 2 . . . 3 1 . . . . . . . . . 1 . . . . . 1 . Drone 3 | . . . . . . . . . . 1 . . . . . . . . . 2 . . . Watcher 6 | . 1 . . . 3 . . . . . 1 . . . . . . . . . . 1 . Swarmer 32 | . 6 . . 3 . . . . . . . . . . 5 4 . . . 10 4 . . Saboteur 2 | . . . . . . . . . . . . . . . . . . . . . . . 2 Grunt 34 | . 7 . . . 15 . . . . . . . . . . . . . . . . 4 8 Brawler 3 | . . . . . 1 . . . . . . . . . . . . . . . . . 2 Duelist 1 | . . . . . . . . . . . . . . . . . . . . . . . 1 Sentry 7 | . . . . . 6 . . . . . . . . . . . . . . . . 1 . Demolisher 1 | . . . . . . 1 . . . . . . . . . . . . . . . . . Specialist 2 | . . . . . 2 . . . . . . . . . . . . . . . . . . Programmer 6 | . . . . . . . . . . . . . . . . . . . . . . 6 . Heavy 1 | . . . . . 1 . . . . . . . . . . . . . . . . . . Decomposer 1 | . . . . . . . . . . . . . . . . . 1 . . . . . . Samaritan 5 | . . . . . . . 1 1 . . . 3 . . . . . . . . . . . Best Kill Streak 9 | 2 4 1 . 4 4 2 . . 1 1 1 . . . 5 4 . . . 5 4 5 9 Combat Bots Only 8 | . 3 . . 3 3 1 . . . 1 . . . . 5 4 . . . 5 4 4 8 Max Kills in Single Turn 5 | 1 4 1 . 3 1 1 1 1 1 1 1 1 . . 4 2 1 . . 4 2 2 5 Gunslinging . | . . . . . . . . . . . . . . . . . . . . . . . . Exploded 5 | . 3 . . 2 . . . . . . . . . . 4 2 . . . 4 2 1 5 Melee 1 | . . . . . . 1 . . . 1 . . . . . . . . . 1 . 1 . Uniques/NPCs Destroyed 1 | . . . . . . . . . 1 . . . . . . . . . . . . . . Data Miner (-7/Data Miner) Combat | -11 -10 -10 -10 -9 -8 -7 -7 -7 -7 -6 -6 -6 -6 -6 -5 -5 -5 -5 -5 -4 -4 -3 -3 -------- Run | Yrd Mat Min Exi Min Mat Fac Low Low Dat Pro Fac Low Low Zio Pro Fac Upp Upp War Pro Fac Res Tes Hostile Shots Fired 681 | . 47 . . 6 180 . . . 5 2 . . . . 14 4 . . 11 11 10 137 254 Missed 218 | . 12 . . 1 66 . . . 2 2 . . . . 8 3 . . 9 4 4 22 85 Damage Taken 8608 | . 353 . . 95 1816 . . . 148 . . . . . 48 12 . . 33 124 134 2684 3161 Core 1605 | . 74 . . 9 133 . . . . . . . . . 15 . . . 17 53 . 187 1117 Absorbed by Shields 1296 | . . . . . 81 . . . . . . . . . . . . . . . . . 1215 Regen/Repaired (Parts) 274 | . 37 . . . 21 . . . . . . . . 123 . . . . . . . 93 . Core Remaining (%) 90 | 100 . . . 66 75 . . . . 100 . . . . 98 . . . . 93 100 . . Volleys Fired 337 | 15 53 7 . 2 119 . 4 3 . 7 . . 11 . 7 7 . 2 . 9 4 74 13 Largest 2 | 2 2 2 . 2 2 . 1 1 . 1 . . 1 . 1 1 . 1 . 1 1 2 2 Hottest 196 | 40 100 46 . 53 86 . 90 30 . 90 . . 90 . 90 90 . 90 . 90 46 196 146 Shots Fired 561 | 30 98 14 . 4 241 . 4 3 . 7 . . 11 . 7 7 . 2 . 9 4 102 18 Gun 384 | 30 92 14 . 3 241 . . . . . . . . . . . . . . . . . 4 Cannon 135 | . . . . . . . 4 3 . 7 . . 11 . 4 3 . 2 . 4 . 93 4 Launcher 39 | . 3 . . 1 . . . . . . . . . . 3 4 . . . 5 4 9 10 Special 3 | . 3 . . . . . . . . . . . . . . . . . . . . . . Kinetic 272 | 30 92 14 . 3 133 . . . . . . . . . . . . . . . . . . Thermal 239 | . 3 . . . 108 . 4 3 . 7 . . 11 . 4 3 . 2 . 4 . 86 4 Explosive 39 | . 3 . . 1 . . . . . . . . . . 3 4 . . . 5 4 9 10 Electromagnetic 6 | . . . . . . . . . . . . . . . . . . . . . . 3 3 Entropic 5 | . . . . . . . . . . . . . . . . . . . . . . 4 1 Robot Hit Streak 24 | 6 13 11 . 3 24 . . . . . . . . . . 1 . . . 1 2 17 18 Robot Miss Streak 6 | 6 5 2 . . 3 . . . . . . . . . . 2 . . . 2 1 3 2 Penetration Max . | . . . . . . . . . . . . . . . . . . . . . . . . Secondary Targets 2 | . . . . . 2 . . . . . . . . . . . . . . . . . . Max Gunslinging Chain 1 | . . . . . 1 . . . . . . . . . . . . . . . . . . Shots Hit Robots 394 | 15 55 10 . 2 175 13 1 1 1 1 2 3 . . . 4 1 . . 4 4 95 7 Core Hits 236 | 4 25 2 . 4 71 5 . 1 1 . 1 1 . . 10 5 . . . 12 6 40 48 Critical Kills . | . . . . . . . . . . . . . . . . . . . . . . . . Critical Parts Destroyed 4 | 1 . . . . . . . . . . . . . . . . . . . . . 3 . Critical Strikes 19 | 1 . . . . 10 2 . 1 . . . . . . . . . . . . . 5 . Burn 10 | . . . . . 10 . . . . . . . . . . . . . . . . . . Destroy 1 | 1 . . . . . . . . . . . . . . . . . . . . . . . Smash 3 | . . . . . . . . . . . . . . . . . . . . . . 3 . Sever 4 | . . . . . . 2 . . . . . . . . . . . . . . . 2 . Impale 1 | . . . . . . . . 1 . . . . . . . . . . . . . . . Melee Attacks 334 | . . . . . 26 33 9 12 14 15 31 7 16 14 4 30 13 4 9 27 15 53 2 Impact 40 | . . . . . . . . . . 2 3 . 3 2 1 7 4 . 1 4 3 10 . Slashing 250 | . . . . . 26 30 5 3 10 13 28 7 13 12 3 23 9 4 8 23 12 21 . Piercing 44 | . . . . . . 3 4 9 4 . . . . . . . . . . . . 22 2 Sneak Attacks 37 | . . . . . 5 7 1 1 1 1 . 3 . . . 1 1 . . 1 2 13 . Combat Hostiles 5 | . . . . . . 3 . . . 1 . . . . . . . . . 1 . . . Follow-up Attacks 5 | . . . . . . 3 . . . . . . . . . 1 . . . . . 1 . Damage Inflicted 19568 | 181 1009 129 . 215 3232 830 95 92 100 68 114 276 . . 456 696 77 . . 1213 570 5213 5002 Guns 3983 | 181 712 106 . 34 2834 . . . . . . . . . . . . . . . . . 116 Cannons 2713 | . . . . . . . . . . . . . . . . . . . . . . 2583 130 Explosions 8854 | . 274 . . 168 . . . . . . . . . . 456 449 . . . 1023 412 1316 4756 Melee 3909 | . . . . . 348 830 95 92 100 68 114 276 . . . 247 77 . . 190 158 1314 . Ramming 109 | . 23 23 . 13 50 . . . . . . . . . . . . . . . . . . Kinetic 2325 | 181 712 106 . 34 1292 . . . . . . . . . . . . . . . . . . Thermal 4225 | . . . . . 1542 . . . . . . . . . . 158 . . . . . 2409 116 Explosive 8696 | . 274 . . 168 . . . . . . . . . . 456 291 . . . 1023 412 1316 4756 Electromagnetic 151 | . . . . . . . . . . . . . . . . . . . . . . 103 48 Impact 711 | . . . . . . . . . . . . . . . . 69 . . . . . 642 . Slashing 2678 | . . . . . 348 777 . . 100 68 114 276 . . . 178 77 . . 190 158 392 . Piercing 520 | . . . . . . 53 95 92 . . . . . . . . . . . . . 280 . Entropic 153 | . . . . . . . . . . . . . . . . . . . . . . 71 82 Highest Corruption 48 | . . . . . 4 . . . . . . . . . . . . . . . . 19 48 Average Corruption 8 | . . . . . 4 . . . . . . . . . . . . . . . . 13 25 Corruption Purged . | . . . . . . . . . . . . . . . . . . . . . . . . Corruption Blocked . | . . . . . . . . . . . . . . . . . . . . . . . . Effects 125 | . . . . . 61 . . . . . . . . . . . . . . . . 47 17 Message Errors 34 | . . . . . 16 . . . . . . . . . . . . . . . . 14 4 Matter Fused 31 | . . . . . 20 . . . . . . . . . . . . . . . . 9 2 Heat Flow Errors 13 | . . . . . 7 . . . . . . . . . . . . . . . . 5 1 Energy Discharges 12 | . . . . . 5 . . . . . . . . . . . . . . . . 5 2 Parts Rejected 1 | . . . . . 1 . . . . . . . . . . . . . . . . . . Parts Fused 1 | . . . . . . . . . . . . . . . . . . . . . . . 1 Data Loss (minor) 16 | . . . . . 7 . . . . . . . . . . . . . . . . 8 1 Data Loss (major) 2 | . . . . . . . . . . . . . . . . . . . . . . 1 1 Misfires 7 | . . . . . 4 . . . . . . . . . . . . . . . . 2 1 Alerts 1 | . . . . . . . . . . . . . . . . . . . . . . 1 . Misdirections 3 | . . . . . . . . . . . . . . . . . . . . . . . 3 Weapon Failures 4 | . . . . . 1 . . . . . . . . . . . . . . . . 2 1 Overload Shots 29 | . . . . . . . 2 . . 3 . . 3 . 1 3 . 2 . 4 . 11 . Effects 3 | . . . . . . . 1 . . . . . 1 . . . . . . . . 1 . Energy Bleed 1 | . . . . . . . . . . . . . . . . . . . . . . 1 . Heat Surge 2 | . . . . . . . 1 . . . . . 1 . . . . . . . . . . Overflow Damage 1704 | . 57 . . 34 68 18 91 . . 38 19 106 . . 5 127 60 . . 64 105 774 138 Projectiles 99 | . . . . . . . . . . . . . . . . . . . . . . 99 . Explosions 495 | . 57 . . 34 . . . . . . . . . . 5 38 . . . 61 65 97 138 Melee 1110 | . . . . . 68 18 91 . . 38 19 106 . . . 89 60 . . 3 40 578 . Knockbacks 7 | . 1 1 . . . . . . . . . . . . . . . . . . . 5 . Impact 7 | . 1 1 . . . . . . . . . . . . . . . . . . . 5 . Kinetic . | . . . . . . . . . . . . . . . . . . . . . . . . Secondary . | . . . . . . . . . . . . . . . . . . . . . . . . Self-Inflicted Damage 404 | . . . . 31 . . . . . . . . . . . . . . . . 52 . 321 Shots 6 | . . . . 1 . . . . . . . . . . . . . . . . 1 . 4 Rammed 12 | . 5 4 . 1 2 . . . . . . . . . . . . . . . . . . Targets Rammed 15 | . 5 4 . 1 5 . . . . . . . . . . . . . . . . . . Kicked . | . . . . . . . . . . . . . . . . . . . . . . . . Crushed 3 | . . . . . 3 . . . . . . . . . . . . . . . . . . Highest Temperature 422 | . 60 . . . 255 7 190 2 15 88 4 . 195 . 38 112 38 71 100 174 48 422 210 Average Temperature 45 | . 30 . . . 58 2 57 2 6 14 4 . 85 . 23 12 11 27 28 23 7 125 60 Received Heat Transfer 1523 | . 150 . . . 799 . . . . . . . . . . . . . . . . 114 460 Effects 6 | . . . . . . . . . . . . . . . . . . . . . . 6 . Energy Bleed 2 | . . . . . . . . . . . . . . . . . . . . . . 2 . Interference 4 | . . . . . . . . . . . . . . . . . . . . . . 4 . Siege Activations . | . . . . . . . . . . . . . . . . . . . . . . . . Robots Corrupted . | . . . . . . . . . . . . . . . . . . . . . . . . Combat Hostiles . | . . . . . . . . . . . . . . . . . . . . . . . . Parts Fried 11 | . . . . . . . . . . . . . . . . 2 . . . . . 9 . Impact Corruptions 19 | . . . . . . . . . . . . . . . . 2 . . . . . 17 . Robots Melted 1 | . . . . . . . . . . . . . . . . . . . . . . 1 . Combat Hostiles 1 | . . . . . . . . . . . . . . . . . . . . . . 1 . Parts Melted 13 | . . . . . 7 . . . . . . . . . . . . . . . . 6 . Heat Transferred 7148 | . . . . . 3996 . . . . . . . . . . 150 . . . . . 2934 68 Parts Sabotaged 2 | . . . . . . . . . . . . . . . . . . . . . . . 2 Parts Stolen . | . . . . . . . . . . . . . . . . . . . . . . . . Parts Stripped . | . . . . . . . . . . . . . . . . . . . . . . . . Power Chain Reactions . | . . . . . . . . . . . . . . . . . . . . . . . . Alert | -11 -10 -10 -10 -9 -8 -7 -7 -7 -7 -6 -6 -6 -6 -6 -5 -5 -5 -5 -5 -4 -4 -3 -3 ------- Run | Yrd Mat Min Exi Min Mat Fac Low Low Dat Pro Fac Low Low Zio Pro Fac Upp Upp War Pro Fac Res Tes Peak Influence 2027 | 15 185 12 . 85 223 178 . . . . 288 . . . . 235 . . . . 512 384 2027 Initial 294 | . 9 7 . . . 84 . . . . 181 . . . . 64 . . . . 294 212 159 Average 141 | 8 46 3 . 8 126 132 . . . . 248 . . . . 107 . . . . 344 237 1757 Maximum Alert Level 5 | . . . . . 1 . . . . . 1 . . . . 1 . . . . 2 1 5 Low Security (%) 81 | 100 100 100 . 100 96 100 . . . . 17 . . . . 92 . . . . . 19 . Level 1 16 | . . . . . 3 . . . . . 82 . . . . 7 . . . . 83 80 . Level 2 . | . . . . . . . . . . . . . . . . . . . . . 16 . . Level 3 . | . . . . . . . . . . . . . . . . . . . . . . . . Level 4 . | . . . . . . . . . . . . . . . . . . . . . . . . Level 5 . | . . . . . . . . . . . . . . . . . . . . . . . . High Security . | . . . . . . . . . . . . . . . . . . . . . . . . Max Security 1 | . . . . . . . . . . . . . . . . . . . . . . . 99 Squads Dispatched 37 | . 7 . . . 4 2 . . . . 3 . . . . 3 . . . . 1 5 12 Investigation 11 | . 5 . . . 2 . . . . . 2 . . . . 2 . . . . . . . Extermination 5 | . . . . . . . . . . . 1 . . . . 1 . . . . . 3 . Reinforcement 8 | . 2 . . . 2 2 . . . . . . . . . . . . . . . 2 . Assault 13 | . . . . . . . . . . . . . . . . . . . . . 1 . 12 Garrison . | . . . . . . . . . . . . . . . . . . . . . . . . Intercept . | . . . . . . . . . . . . . . . . . . . . . . . . Searches Triggered . | . . . . . . . . . . . . . . . . . . . . . . . . Construction Impeded . | . . . . . . . . . . . . . . . . . . . . . . . . Haulers Reinforced 2 | . . . . . . 1 . . . . . . . . . . . . . . . 1 . Active Scanning Responses . | . . . . . . . . . . . . . . . . . . . . . . . . Cargo Convoy Interrupts . | . . . . . . . . . . . . . . . . . . . . . . . . Stealth | -11 -10 -10 -10 -9 -8 -7 -7 -7 -7 -6 -6 -6 -6 -6 -5 -5 -5 -5 -5 -4 -4 -3 -3 --------- Run | Yrd Mat Min Exi Min Mat Fac Low Low Dat Pro Fac Low Low Zio Pro Fac Upp Upp War Pro Fac Res Tes Distress Signals 4 | . 1 . . . 3 . . . . . . . . . . . . . . . . . . Communications Jammed 76 | . . . . . . . . . . . . . . . . . . . 9 1 . 50 16 Distress Signals 75 | . . . . . . . . . . . . . . . . . . . 9 . . 50 16 Times Spotted 185 | . 20 . . 3 44 1 . . 4 3 1 . . . 3 3 . 1 13 5 2 14 68 Peak Tracking Total 31 | . 3 . . 3 4 1 . . 4 3 1 . . . 6 3 . 3 7 4 3 3 31 Tactical Retreats 15 | . 1 . . . 4 . . . . 2 . . . . 1 1 . 1 2 . . . 3 Traps | -11 -10 -10 -10 -9 -8 -7 -7 -7 -7 -6 -6 -6 -6 -6 -5 -5 -5 -5 -5 -4 -4 -3 -3 ------- Run | Yrd Mat Min Exi Min Mat Fac Low Low Dat Pro Fac Low Low Zio Pro Fac Upp Upp War Pro Fac Res Tes Traps Triggered 6 | . 3 . . 1 1 . . . . . . . . . . . . . . . . . 1 Indirectly . | . . . . . . . . . . . . . . . . . . . . . . . . Trap Hack Attempts . | . . . . . . . . . . . . . . . . . . . . . . . . Triggered . | . . . . . . . . . . . . . . . . . . . . . . . . Disarmed . | . . . . . . . . . . . . . . . . . . . . . . . . Reprogrammed . | . . . . . . . . . . . . . . . . . . . . . . . . Reused . | . . . . . . . . . . . . . . . . . . . . . . . . Traps Extracted . | . . . . . . . . . . . . . . . . . . . . . . . . Installed 2 | . . 2 . . . . . . . . . . . . . . . . . . . . . Triggered 9 | . . . . . . . 1 2 . . . . . . . . . . 6 . . . . Most Traps Carried 3 | . . 3 3 3 3 3 . . . . . . . . . . . . . . . . . Machines | -11 -10 -10 -10 -9 -8 -7 -7 -7 -7 -6 -6 -6 -6 -6 -5 -5 -5 -5 -5 -4 -4 -3 -3 ---------- Run | Yrd Mat Min Exi Min Mat Fac Low Low Dat Pro Fac Low Low Zio Pro Fac Upp Upp War Pro Fac Res Tes Machines Disabled 12 | . 2 . . . 1 . . . 1 . . . . . . 3 . 1 . . 1 1 2 Max in Single Turn 3 | . 1 . . . 1 . . . 1 . . . . . . 3 . 1 . . 1 1 1 Garrison Access 4 | . . . . . 1 1 . . . . 1 . . . . 1 . . . . . . . Machines Repaired . | . . . . . . . . . . . . . . . . . . . . . . . . Machines Dismantled . | . . . . . . . . . . . . . . . . . . . . . . . . Machines Sabotaged . | . . . . . . . . . . . . . . . . . . . . . . . . Overloaded Fab Kills . | . . . . . . . . . . . . . . . . . . . . . . . . Hacking | -11 -10 -10 -10 -9 -8 -7 -7 -7 -7 -6 -6 -6 -6 -6 -5 -5 -5 -5 -5 -4 -4 -3 -3 --------- Run | Yrd Mat Min Exi Min Mat Fac Low Low Dat Pro Fac Low Low Zio Pro Fac Upp Upp War Pro Fac Res Tes Machines Accessed 67 | . 8 . 2 1 14 7 . . 4 . 7 . . . . 9 1 1 6 . 4 3 . Terminals 27 | . 5 . . . 8 5 . . . . 3 . . . . 2 . . . . 3 1 . Fabricators 5 | . . . . . . . . . . . 2 . . . . 3 . . . . . . . Repair Stations 4 | . 1 . . . 2 . . . . . . . . . . . . . . . . 1 . Recycling Units 9 | . 2 . . . 2 1 . . . . 1 . . . . 2 . . . . 1 . . Scanalyzers 3 | . . . . . 1 . . . . . . . . . . 1 . . . . . 1 . Garrison Access 4 | . . . . . 1 1 . . . . 1 . . . . 1 . . . . . . . Total Hacks 191 | . 20 . 5 1 31 13 . . 30 . 24 . . . . 28 1 1 9 . 20 8 . Successful 134 | . 10 . 5 1 14 6 . . 30 . 14 . . . . 20 1 1 9 . 17 6 . Failed 56 | . 9 . . . 17 7 . . . . 10 . . . . 8 . . . . 3 2 . Catastrophic 8 | . 1 . . . 2 2 . . . . 1 . . . . 2 . . . . . . . Database Lockouts 1 | . 1 . . . . . . . . . . . . . . . . . . . . . . Manual 78 | . 14 . 1 . 15 9 . . . . 15 . . . . 11 . . 1 . 11 1 . Terminals 88 | . 15 . . . 19 8 . . . . 15 . . . . 10 . . . . 19 2 . Fabricators 11 | . . . . . . . . . . . 4 . . . . 7 . . . . . . . Repair Stations 10 | . 2 . . . 4 . . . . . . . . . . . . . . . . 4 . Recycling Units 17 | . 3 . . . 5 4 . . . . 2 . . . . 2 . . . . 1 . . Scanalyzers 12 | . . . . . 2 . . . . . . . . . . 8 . . . . . 2 . Garrison Access 6 | . . . . . 1 1 . . . . 3 . . . . 1 . . . . . . . Terminal Hacks 81 | . 4 . 5 1 3 1 . . 30 . 8 . . . . 4 1 1 9 . 14 . . Record 23 | . . . 4 . . . . . 11 . . . . . . . . 1 7 . . . . Part Schematic 19 | . 1 . . . . . . . 11 . 3 . . . . 2 . . . . 2 . . Robot Schematic 5 | . . . . . . . . . 5 . . . . . . . . . . . . . . Robot Analysis 1 | . . . . . . . . . . . . . . . . . . . . . 1 . . Prototype ID Bank 6 | . . . . . . . . . 3 . . . . . . . . . . . 3 . . Open Door 4 | . . . . 1 . . . . . . . . . . . . 1 . 2 . . . . Level Access Points 1 | . . . . . . . . . . . . . . . . . . . . . 1 . . Branch Access Points 3 | . . . . . . 1 . . . . 1 . . . . 1 . . . . . . . Fabricator Index 1 | . . . . . . . . . . . . . . . . . . . . . 1 . . Unreport Threat 6 | . 3 . . . 2 . . . . . . . . . . . . . . . 1 . . Locate Traps 2 | . . . . . . . . . . . . . . . . . . . . . 2 . . Recall Investigation 2 | . . . . . . . . . . . 2 . . . . . . . . . . . . Recall Extermination 2 | . . . . . . . . . . . 1 . . . . 1 . . . . . . . Hauler Manifests 3 | . . . . . 1 . . . . . 1 . . . . . . . . . 1 . . Zone Layout 2 | . . . . . . . . . . . . . . . . . . . . . 2 . . Derelict Proto ID Bank 1 | . . . 1 . . . . . . . . . . . . . . . . . . . . Fabricator Hacks 9 | . . . . . . . . . . . 3 . . . . 6 . . . . . . . Network Status 1 | . . . . . . . . . . . . . . . . 1 . . . . . . . Load Schematic 4 | . . . . . . . . . . . 2 . . . . 2 . . . . . . . Build 4 | . . . . . . . . . . . 1 . . . . 3 . . . . . . . Repair Station Hacks 10 | . 2 . . . 4 . . . . . . . . . . . . . . . . 4 . Scan Component 5 | . 1 . . . 2 . . . . . . . . . . . . . . . . 2 . Repair 5 | . 1 . . . 2 . . . . . . . . . . . . . . . . 2 . Recycling Unit Hacks 6 | . . . . . 1 1 . . . . 1 . . . . 2 . . . . 1 . . Retrieve Components 6 | . . . . . 1 1 . . . . 1 . . . . 2 . . . . 1 . . Scanalyzer 10 | . . . . . 1 . . . . . . . . . . 7 . . . . . 2 . Insert Component 6 | . . . . . 1 . . . . . . . . . . 3 . . . . . 2 . Analyze 4 | . . . . . . . . . . . . . . . . 4 . . . . . . . Garrison Access Hacks 4 | . . . . . 1 1 . . . . 1 . . . . 1 . . . . . . . Seal Access 4 | . . . . . 1 1 . . . . 1 . . . . 1 . . . . . . . Unauthorized Hacks 14 | . 4 . . . 4 3 . . . . 1 . . . . . . . . . 2 . . Terminals 7 | . 2 . . . 2 1 . . . . . . . . . . . . . . 2 . . Assimilate 1 | . . . . . . 1 . . . . . . . . . . . . . . . . . Botnet 5 | . 2 . . . 2 . . . . . . . . . . . . . . . 1 . . Disrupt 1 | . . . . . . . . . . . . . . . . . . . . . 1 . . Fabricators . | . . . . . . . . . . . . . . . . . . . . . . . . Repair Stations . | . . . . . . . . . . . . . . . . . . . . . . . . Recycling Units 7 | . 2 . . . 2 2 . . . . 1 . . . . . . . . . . . . Reject 1 | . . . . . . 1 . . . . . . . . . . . . . . . . . Mask 1 | . . . . . . 1 . . . . . . . . . . . . . . . . . Tunnel 5 | . 2 . . . 2 . . . . . 1 . . . . . . . . . . . . Scanalyzers . | . . . . . . . . . . . . . . . . . . . . . . . . Garrison Access . | . . . . . . . . . . . . . . . . . . . . . . . . Data Cores Recovered 4 | . . . . . 2 . . . . . . . . . . 1 . . . . . 1 . Used 1 | . . . . . . . . . . . . . . . . . . . . . . 1 . Hacking Detections 40 | . 6 . . . 11 6 . . . . 6 . . . . 6 . . . . 3 2 . Full Trace Events 5 | . . . . . 2 . . . . . 1 . . . . 2 . . . . . . . Feedback Events . | . . . . . . . . . . . . . . . . . . . . . . . . Feedback Blocked . | . . . . . . . . . . . . . . . . . . . . . . . . Robot Schematics Acquired 7 | . . . . . . . . . 5 . . . . 2 . . . . . . . . . Robots Built . | . . . . . . . . . . . . . . . . . . . . . . . . Authchips . | . . . . . . . . . . . . . . . . . . . . . . . . Time . | . . . . . . . . . . . . . . . . . . . . . . . . Total Robot Build Rating . | . . . . . . . . . . . . . . . . . . . . . . . . Part Schematics Acquired 34 | . 1 . . . . . . . 11 . 3 . . 15 . 3 . . . . 1 . . Parts Built 4 | . . . . . . . . . . . 1 . . . . 3 . . . . . . . Authchips . | . . . . . . . . . . . . . . . . . . . . . . . . Time 468 | . . . . . . . . . . . 169 . . . . 299 . . . . . . . Total Part Build Rating 26 | . . . . . . . . . . . 6 . . . . 20 . . . . . . . Parts Repaired 5 | . 1 . . . 2 . . . . . . . . . . . . . . . . 2 . Time 264 | . 26 . . . 69 . . . . . . . . . . . . . . . . 169 . Parts Recycled . | . . . . . . . . . . . . . . . . . . . . . . . . Recycled Matter . | . . . . . . . . . . . . . . . . . . . . . . . . Retrieved Matter . | . . . . . . . . . . . . . . . . . . . . . . . . Retrieved Components 11 | . . . . . 3 . . . . . 3 . . . . 4 . . . . 1 . . Parts Scanalyzed 3 | . . . . . 1 . . . . . . . . . . 2 . . . . . . . Part Schematics Acquired 1 | . . . . . . . . . . . . . . . . 1 . . . . . . . Parts Damaged 1 | . . . . . . . . . . . . . . . . 1 . . . . . . . Bothacking | -11 -10 -10 -10 -9 -8 -7 -7 -7 -7 -6 -6 -6 -6 -6 -5 -5 -5 -5 -5 -4 -4 -3 -3 ------------ Run | Yrd Mat Min Exi Min Mat Fac Low Low Dat Pro Fac Low Low Zio Pro Fac Upp Upp War Pro Fac Res Tes Used RIF Installer . | . . . . . . . . . . . . . . . . . . . . . . . . Robots Hacked . | . . . . . . . . . . . . . . . . . . . . . . . . Non-combat . | . . . . . . . . . . . . . . . . . . . . . . . . Combat . | . . . . . . . . . . . . . . . . . . . . . . . . Robot Hacks Applied . | . . . . . . . . . . . . . . . . . . . . . . . . Relay Couplers Released . | . . . . . . . . . . . . . . . . . . . . . . . . Fabnet Peak Effective % . | . . . . . . . . . . . . . . . . . . . . . . . . Robots Rewired . | . . . . . . . . . . . . . . . . . . . . . . . . Allies Hacked . | . . . . . . . . . . . . . . . . . . . . . . . . Hacks Repelled . | . . . . . . . . . . . . . . . . . . . . . . . . Allies | -11 -10 -10 -10 -9 -8 -7 -7 -7 -7 -6 -6 -6 -6 -6 -5 -5 -5 -5 -5 -4 -4 -3 -3 -------- Run | Yrd Mat Min Exi Min Mat Fac Low Low Dat Pro Fac Low Low Zio Pro Fac Upp Upp War Pro Fac Res Tes Total Allies 17 | . . 1 . . . . . . . . 12 . . 4 . . . . . . . . . Largest Group 9 | . . 1 . . . . . . . . 9 . . 4 4 . . . . . . . . Highest-Rated Group 245 | . . 31 . . . . . . . . 245 . . 84 84 . . . . . . . . Highest-Rated Ally 31 | . . 31 . . . . . . . . 31 . . 31 31 . . . . . . . . Total Orders 2 | . . . . . . . . . . . . . . . . . . . . . . 2 . RETURN 2 | . . . . . . . . . . . . . . . . . . . . . . 2 . Ally Attacks 74 | . . . . . . . . . . . 27 . . . 23 . . . . . . 24 . Total Damage 1033 | . . . . . . . . . . . 211 . . . 358 . . . . . . 464 . Kills 3 | . . . . . . . . . . . 1 . . . 1 . . . . . . 1 . Allies Corrupted . | . . . . . . . . . . . . . . . . . . . . . . . . Allies Melted . | . . . . . . . . . . . . . . . . . . . . . . . . Intel | -11 -10 -10 -10 -9 -8 -7 -7 -7 -7 -6 -6 -6 -6 -6 -5 -5 -5 -5 -5 -4 -4 -3 -3 ------- Run | Yrd Mat Min Exi Min Mat Fac Low Low Dat Pro Fac Low Low Zio Pro Fac Upp Upp War Pro Fac Res Tes Robot Analysis Total 1 | . . . . . . . . . . . . . . . . . . . . . 1 . . Derelict Logs Recovered 15 | . . 1 . 2 . . 1 1 . 1 . 2 1 1 2 . 1 2 . . . . . Drone Launches 4 | . . . . . . . . . . . . . . . . . . . . . . 4 . Drone Recoveries 3 | . . . . . . . . . . . . . . . . . . . . . . 3 . Exploration | -11 -10 -10 -10 -9 -8 -7 -7 -7 -7 -6 -6 -6 -6 -6 -5 -5 -5 -5 -5 -4 -4 -3 -3 ------------- Run | Yrd Mat Min Exi Min Mat Fac Low Low Dat Pro Fac Low Low Zio Pro Fac Upp Upp War Pro Fac Res Tes Turns Passed 16745 | 135 1504 1209 1283 1699 4686 274 133 201 74 191 362 158 243 761 166 538 117 180 431 309 264 1577 250 Spaces Moved 14845 | 48 781 568 399 519 1552 664 348 560 124 377 926 507 460 1686 380 992 304 482 1009 495 596 917 151 Core 55 | 1 . . . . 1 . . . . . . . . . . 1 . . . . . . 52 Treads 4426 | 47 781 568 399 519 1461 . . . . . . . . . . . . . . . . 552 99 Legs . | . . . . . . . . . . . . . . . . . . . . . . . . Wheels . | . . . . . . . . . . . . . . . . . . . . . . . . Hover 56 | . . . . . . . . . . . . . . . . . . . . . . 56 . Flight 10308 | . . . . . 90 664 348 560 124 377 926 507 460 1686 380 991 304 482 1009 495 596 309 . Fastest Speed 20 | 50 160 160 320 320 96 23 23 23 23 23 23 23 23 23 23 20 24 24 23 24 24 24 50 Average Speed 85 | 157 160 201 320 320 245 25 23 23 23 23 23 23 23 26 23 24 24 24 23 24 24 101 112 Slowest Speed 2000 | 160 160 320 320 320 2000 233 93 23 23 23 93 23 23 93 23 500 24 24 24 24 99 225 145 Overloaded Moves . | . . . . . . . . . . . . . . . . . . . . . . . . Propulsion Burnouts . | . . . . . . . . . . . . . . . . . . . . . . . . Robots Hopped 12 | . . . . . . 5 . . . . 4 . . . . 2 . . . . . 1 . Cave-ins Triggered . | . . . . . . . . . . . . . . . . . . . . . . . . Exploration Rate (%) 56 | 4 95 98 65 93 77 16 50 61 77 60 19 72 59 86 63 19 47 72 97 65 13 27 27 Regions Visited 23 Branch Regions 16 Pre-discovered Areas 12 | . 2 1 1 1 2 . . . 1 . 1 . . 2 . . . 1 . . . . . Known Exits Taken 16 | . . . . . . 1 1 1 1 1 1 1 1 1 1 1 1 1 1 1 1 . . Unknown Exits Taken 7 | 1 1 1 1 1 1 . . . . . . . . . . . . . . . . 1 . Scrap Searched 19 | . . 1 . . . . 1 2 . . . 3 1 2 1 . 1 4 . 3 . . . Spaces Dug 254 | . 8 . . 10 19 12 9 10 5 16 25 4 17 2 4 22 8 5 2 17 9 30 20 Terrain Destroyed 509 | . 21 . . 10 19 12 9 10 5 16 25 4 20 2 18 47 8 5 2 99 41 91 45 Melee 197 | . . . . . 19 12 7 8 5 11 25 4 13 2 3 20 8 3 2 15 9 30 1 Projectile 42 | . 3 . . . . . 2 2 . 5 . . 7 . 1 3 . 2 . 4 . 13 . AOE 270 | . 18 . . 10 . . . . . . . . . . 14 24 . . . 80 32 48 44 Terrain Rammed . | . . . . . . . . . . . . . . . . . . . . . . . . Walls Destroyed . | . . . . . . . . . . . . . . . . . . . . . . . . Machines Disabled . | . . . . . . . . . . . . . . . . . . . . . . . . Actions | -11 -10 -10 -10 -9 -8 -7 -7 -7 -7 -6 -6 -6 -6 -6 -5 -5 -5 -5 -5 -4 -4 -3 -3 --------- Run | Yrd Mat Min Exi Min Mat Fac Low Low Dat Pro Fac Low Low Zio Pro Fac Upp Upp War Pro Fac Res Tes Total 17780 | 74 931 619 410 558 2176 723 379 609 152 446 1020 534 558 1977 442 1237 329 533 1183 627 687 1370 206 Wait 1647 | . 44 20 . 9 293 5 15 28 4 42 58 14 69 259 48 179 11 33 143 90 57 224 2 Move 14798 | 47 780 567 398 518 1551 653 347 559 123 376 917 506 459 1685 379 987 303 481 1008 494 595 914 151 Hop 12 | . . . . . . 5 . . . . 4 . . . . 2 . . . . . 1 . Pick Up 170 | 4 20 11 8 10 48 12 . 1 7 . 5 1 . 3 . 7 1 2 2 . 2 25 1 Fast Attach 77 | 7 2 . . 1 19 2 . . . . . 2 . 6 1 5 . . 8 . 4 20 . Attach 33 | . 1 . . . 10 1 . 1 1 . 2 . . . . 2 . 1 1 . 1 7 5 Detach 15 | . . . . 1 6 . . 1 . . . . . . . . . 1 1 . 1 4 . Swap 169 | . 13 2 . 4 35 6 5 7 1 8 3 2 6 3 4 11 4 8 2 11 6 22 6 Drop 195 | 1 13 6 4 12 65 13 . . 6 . 3 2 . 9 . 14 1 1 10 . 5 29 1 Fire 337 | 15 53 7 . 2 119 . 4 3 . 7 . . 11 . 7 7 . 2 . 9 4 74 13 Melee 285 | . . . . . 25 26 8 9 10 13 28 7 13 12 3 23 9 4 8 23 12 50 2 Ram . | . . . . . . . . . . . . . . . . . . . . . . . . Kick . | . . . . . . . . . . . . . . . . . . . . . . . . Crush 15 | . 5 4 . 1 5 . . . . . . . . . . . . . . . . . . Escape Stasis 25 | . . . . . . . . . . . . . . . . . . . . . . . 25 Rewire . | . . . . . . . . . . . . . . . . . . . . . . . . Trap 2 | . . 2 . . . . . . . . . . . . . . . . . . . . . Miscellaneous . | . . . . . . . . . . . . . . . . . . . . . . . . Route ------- -11/Scrapyard -10/Materials (discovered 4 exits: [*Mat x3] / [*Min]) -10/Mines (discovered 3 exits: [*Mat x2] / *Exi) -10/Exiles -9/Mines -8/Materials (discovered 2 exits: *Fac x2) -7/Factory (discovered 3 exits: *Fac / *Low x2) -7/Lower Caves -7/Lower Caves -7/Data Miner -6/Proximity Caves -6/Factory (discovered 3 exits: *Fac / *Low x2) -6/Lower Caves -6/Lower Caves (discovered 2 exits: *Fac / *Zio) -6/Zion (discovered 2 exits: *Dee / *Pro) -5/Proximity Caves -5/Factory (discovered 3 exits: Fac / *Upp x2) -5/Upper Caves -5/Upper Caves -5/Warlord -4/Proximity Caves -4/Factory (discovered 5 exits: *Res x4 / Ext) -3/Research (discovered 2 exits: Arm / [*Tes]) -3/Testing History --------- Turn | Location | Event 10 | -11/Scrapyard | Discovered new exit (range 16) 136 | -11/Scrapyard | Entered Materials 267 | -10/Materials | Discovered new exit (range 11) 308 | -10/Materials | Build established: Mutant 333 | -10/Materials | Discovered new exit (range 16) 559 | -10/Materials | Discovered new exit (range 8) 819 | -10/Materials | Discovered new exit (range 11) 1184 | -10/Materials | Repaired Lgt. Treads 1396 | -10/Materials | Central database locked down 1640 | -10/Materials | Entered Mines 1666 | -10/Mines | Found a hidden stash of uninstalled traps 1765 | -10/Mines | Received a Rocket Launcher from a helpful Derelict 1767 | -10/Mines | Discovered new exit (range 10) 1938 | -10/Mines | Found a damaged Exp. Sensor Array with a note attached 1942 | -10/Mines | Found Prototype Device 2115 | -10/Mines | Learned location of Storage (-9) 2333 | -10/Mines | Discovered new exit (range 9) 2339 | -10/Mines | Received a Mining Laser from a helpful Derelict 2733 | -10/Mines | Deemed a non-threat by the Exiles lab entrance 2733 | -10/Mines | Discovered new exit (range 5) 2849 | -10/Mines | Entered Exiles 2980 | -10/Exiles | Met 8R-AWN 3039 | -10/Exiles | Met EX-HEX 3319 | -10/Exiles | Met EX-BIN 3431 | -10/Exiles | Aligned with FarCom system 3434 | -10/Exiles | Given EX-Vault access code 3511 | -10/Exiles | Opened EX-Vault 3533 | -10/Exiles | Found Modified TNC 3602 | -10/Exiles | Warned to stay clear of 0b10 Research branches 3872 | -10/Exiles | Met EX-DEC 3885 | -10/Exiles | Learned location of Zion (-6) 4106 | -10/Exiles | Discovered new exit (range 10) 4132 | -10/Exiles | Left Exiles lab with Modified TNC 4132 | -10/Exiles | Entered Mines 4520 | -9/Mines | A weapon hastily lodged in a ceiling crevice suddenly fell to the ground 4553 | -9/Mines | Learned Materials emergency access door positions 4739 | -9/Mines | Learned Materials terminal intel 4965 | -9/Mines | Discovered new exit (range 4) 5293 | -9/Mines | Met a Derelict who couldn't figure out how to use a Trap Extractor 5831 | -9/Mines | Entered Materials 5831 | -8/Materials | Evolved 4 slots: Propulsion x2, Utility x2 5833 | -8/Materials | Loaded intel: 12 terminal locations 6359 | -8/Materials | Identified Exp. Sensor Array 7202 | -8/Materials | Discovered new exit (range 16) 7751 | -8/Materials | Discovered new exit (range 14) 8789 | -8/Materials | Build established: Scavenger-Mutant 9635 | -8/Materials | Repaired Lgt. Deuterium Engine 9821 | -8/Materials | Build established: Mutant 10080 | -8/Materials | Repaired Adv. Heat Sink 10517 | -8/Materials | Entered Factory 10517 | -7/Factory | Evolved 2 slots: Propulsion x1, Utility x1 10622 | -7/Factory | Identified exit to Lower Caves 10681 | -7/Factory | Discovered new exit (range 11) 10791 | -7/Factory | Entered Lower Caves 10825 | -7/Lower Caves | Encountered a Warlord checkpoint 10896 | -7/Lower Caves | Learned Factory trap positions 10902 | -7/Lower Caves | Build established: Hacker-Sprinter 10905 | -7/Lower Caves | Discovered new exit (range 7) 10906 | -7/Lower Caves | Identified exit to Lower Caves 10924 | -7/Lower Caves | Entered another Lower Caves area 11103 | -7/Lower Caves | Discovered new exit (range 9) 11103 | -7/Lower Caves | Learned Factory interactive machine intel 11105 | -7/Lower Caves | Identified exit to Data Miner 11125 | -7/Lower Caves | Entered Data Miner 11127 | -7/Data Miner | Discovered new exit (range 6) 11128 | -7/Data Miner | Identified exit to Proximity Caves 11154 | -7/Data Miner | Met Data Miner 11159 | -7/Data Miner | Learned location of Section 7 (-2) 11159 | -7/Data Miner | Acquired the access code to Warlord's prototype stash 11163 | -7/Data Miner | Received God Mode back door access code from Data Miner 11167 | -7/Data Miner | Destroyed Data Miner 11170 | -7/Data Miner | Found Prototype Hackware 11171 | -7/Data Miner | Found Prototype Hackware 11173 | -7/Data Miner | Found Prototype Hackware 11175 | -7/Data Miner | Data Conduit disabled 11199 | -7/Data Miner | Entered Proximity Caves 11202 | -6/Proximity Caves | Spotter reported a threat 11243 | -6/Proximity Caves | Spotted B-75 Beast 11382 | -6/Proximity Caves | Discovered new exit (range 12) 11390 | -6/Proximity Caves | Identified exit to Factory 11390 | -6/Proximity Caves | Entered Factory 11390 | -6/Factory | Evolved 2 slots: Utility x2 11390 | -6/Factory | Identified System Mapper 11391 | -6/Factory | Loaded intel: 126 trap records 11391 | -6/Factory | Identified Deep Network Scanner 11392 | -6/Factory | Loaded intel: 51 interactive machine locations 11489 | -6/Factory | Identified exit to Lower Caves 11713 | -6/Factory | Discovered new exit (range 7) 11720 | -6/Factory | Fabricated Combat Drone Bay? 11752 | -6/Factory | Entered Lower Caves 11797 | -6/Lower Caves | Learned Factory stockpile data 11844 | -6/Lower Caves | Learned Factory terminal intel 11854 | -6/Lower Caves | Found Alien Artifact 11854 | -6/Lower Caves | Identified Core Expander 11854 | -6/Lower Caves | Installed Core Expander, added new Propulsion slot 11906 | -6/Lower Caves | Discovered new exit (range 5) 11907 | -6/Lower Caves | Identified exit to Lower Caves 11910 | -6/Lower Caves | Entered another Lower Caves area 11911 | -6/Lower Caves | Learned location of 1 exit from Factory 12018 | -6/Lower Caves | Discovered new exit (range 16) 12022 | -6/Lower Caves | Identified exit to Factory 12033 | -6/Lower Caves | Build established: Hacker-Scout 12144 | -6/Lower Caves | Discovered new exit (range 10) 12146 | -6/Lower Caves | Identified exit to Zion 12153 | -6/Lower Caves | Entered Zion 12169 | -6/Zion | Discovered new exit (range 11) 12213 | -6/Zion | Found Prototype Device 12213 | -6/Zion | Identified Bomb Factory No. 2 12225 | -6/Zion | Found Prototype Device 12225 | -6/Zion | Identified Mobile Refinery Mk. CCLXVII 12252 | -6/Zion | Visited the Megawrench Repair Shop 12252 | -6/Zion | Megawrench repaired 4 parts 12258 | -6/Zion | Received a hallucinogenic algorithm 12320 | -6/Zion | Learned location of Quarantine (-2) 12352 | -6/Zion | Found GAL Module 12416 | -6/Zion | Rebuked by Imprinter 12558 | -6/Zion | Gained Derelict followers 12697 | -6/Zion | Discovered new exit (range 5) 12698 | -6/Zion | Saw the warning signs outside the Deep Caves entrance 12698 | -6/Zion | Identified exit to Deep Caves 12797 | -6/Zion | Identified exit to Proximity Caves 12914 | -6/Zion | Entered Proximity Caves 12914 | -5/Proximity Caves | Accompanied by 4 allies 12969 | -5/Proximity Caves | Spotted B-75 Beast 13075 | -5/Proximity Caves | Discovered exit to Factory (range 12) 13080 | -5/Proximity Caves | Entered Factory 13080 | -5/Factory | Evolved 2 slots: Power x1, Utility x1 13081 | -5/Factory | Identified exit to Upper Caves 13082 | -5/Factory | Identified exit to Factory 13084 | -5/Factory | Loaded intel: 26 terminal locations 13086 | -5/Factory | Identified Ghost Barrier 13238 | -5/Factory | Fabricated Adv. Cloaking Device (x1) 13373 | -5/Factory | Build established: Wizard-Sprinter 13402 | -5/Factory | Fabricated Cld. Cesium-ion Thruster? 13428 | -5/Factory | Fabricated Tiamat Missile Launcher? 13618 | -5/Factory | Entered Upper Caves 13631 | -5/Upper Caves | Learned Factory security intel 13699 | -5/Upper Caves | Discovered new exit (range 15) 13702 | -5/Upper Caves | Identified exit to Upper Caves 13735 | -5/Upper Caves | Entered another Upper Caves area 13746 | -5/Upper Caves | Found Alien Artifact 13760 | -5/Upper Caves | Encountered a Warlord checkpoint 13765 | -5/Upper Caves | Learned location of Armory (-3) 13769 | -5/Upper Caves | Identified exit to Warlord 13915 | -5/Upper Caves | Entered Warlord 13922 | -5/Warlord | Discovered new exit (range 9) 14075 | -5/Warlord | Met Warlord 14077 | -5/Warlord | Opened Warlord's prototype stash 14088 | -5/Warlord | Found Prototype Device 14088 | -5/Warlord | Identified System Purifier 14091 | -5/Warlord | Found Prototype Processor 14093 | -5/Warlord | Warlord's base attacked by MAIN.C 14108 | -5/Warlord | Found Prototype Energy Cannon 14108 | -5/Warlord | Identified Vortex Cannon 14111 | -5/Warlord | Found Prototype Energy Cannon 14111 | -5/Warlord | Identified Vortex Driver 14117 | -5/Warlord | Found Vortex Driver 14142 | -5/Warlord | Opened side exit 14193 | -5/Warlord | Spotted B-75 Beast 14346 | -5/Warlord | Identified exit to Proximity Caves 14346 | -5/Warlord | Entered Proximity Caves 14362 | -4/Proximity Caves | Spotter reported a threat 14478 | -4/Proximity Caves | Spotted B-86 Titan 14582 | -4/Proximity Caves | Discovered exit to Factory (range 15) 14655 | -4/Proximity Caves | Entered Factory 14655 | -4/Factory | Evolved 2 slots: Utility x2 14656 | -4/Factory | Identified exit to Extension 14751 | -4/Factory | Found Prototype Processor 14763 | -4/Factory | Identified exit to Research 14905 | -4/Factory | First assault squad dispatched 14919 | -4/Factory | Entered Research 14919 | -3/Research | Evolved 2 slots: Utility x2 14920 | -3/Research | Identified exit to Armory 14960 | -3/Research | Identified Spectral Analyzer 14960 | -3/Research | Identified Exp. Signal Interpreter 15006 | -3/Research | Found Prototype Processor 15113 | -3/Research | Repaired Cld. Cesium-ion Thruster 15203 | -3/Research | Repaired Tiamat Missile Launcher 15277 | -3/Research | Lost 4 parts (2n2u) 15480 | -3/Research | Found Launcher Loader 15515 | -3/Research | System corruption reached 10% 15622 | -3/Research | Build established: Wizard-Assassin 15645 | -3/Research | Found Enh. Force Lance 15792 | -3/Research | Identified Exp. Terrain Scan Processor 15854 | -3/Research | Found Fusion Bomb Launcher 15925 | -3/Research | Discovered new exit (range 17) 16157 | -3/Research | Lost 3 parts (1p2u) 16388 | -3/Research | Found Fusion Bomb Launcher 16496 | -3/Research | Entered Testing 16497 | -3/Testing | Maximum security lockdown engaged 16657 | -3/Testing | Destroyed 8 combat bots 16676 | -3/Testing | System corruption reached 30% 16681 | -3/Testing | Released all parts (8) 16703 | -3/Testing | Spotted Executioner 16706 | -3/Testing | Spotted Investigator 16707 | -3/Testing | Scanned by Researcher 16734 | -3/Testing | Core integrity fell below 50% 16743 | -3/Testing | Core integrity fell below 20% 16746 | -3/Testing | Destroyed by L-61 Swordsman with Power Sword Last Messages --------------- 16736_ W-44 Eye stasis bubble strength at 110. 16736_ M-36 Artificer repairs Adv. Heat Sink. 16737_ Stasis bubble strength at 104. 16737_ Critical hit (Burn: +23). 16738_ Stasis bubble strength at 98. 16738_ W-44 Eye stasis bubble strength at 101. 16738_ P-80 Master suffers critical hit (Burn). 16739_ Stasis bubble strength at 92. 16740_ Stasis bubble strength at 86. 16740_ M-36 Artificer repairs B-74 Champion. 16741_ Stasis bubble strength at 80. 16741_ W-44 Eye stasis bubble strength at 92. 16742_ P-80 Master heat damages Sml. Battery. 16742_ Stasis bubble strength at 74. 16743_ Stasis bubble strength at 68. 16744_ Stasis bubble strength at 62. 16745_ M IHI2A%D:M/VBZ BQDP|=V9NM#CPRA>AI 16745_ Stasis bubble strength at 56. 16745_ W-44 Eye stasis bubble strength at 83. 16746_ Stasis bubble strength at 50. Map ----- +----------------------------------------------------+ | ?????????????????????????????????????????????????? | | ?????????????????????????????????????????????????? | | ?????????????????????????????????????????????????? | | ?????????????????????????????????????????????????? | | ?????????????????????????????????????????????????? | | ?????????????????????????????????????????????????? | | ?????????????????????????????????????????????????? | | ?????????????????????????????????????????????????? | | ?????????????????????????????????????????????????? | | ?????????????????????????????????????????????????? | | ?????????????????????????????????????????????????? | | ?????????????????????????????????????????????????? | | ?????????????????????????????#???????????????????? | | ???????????????????????????? +???????????????????? | | ???????????????????????????? #???????????????????? | | ??????????????????????????? C#???????????????????? | | ??????????????????????????# C#???????????????????? | | ??????????????????######### #???????????????????? | | ??????????????????# p ## #???????????????????? | | ??????????????????# """" ## #???????????????????? | | ??????????????????# """" ## ##??????????????????? | | ??????????????????# """" ## ##??????????????????? | | ??????????????????# """" ## ##??????????????????? | | ??????????????????# ##pm##??????????????????? | | ??????????????#/######+### gg#??????????????????? | | ???????? %%% g =p|@l w #??????????????????? | | ???????? % g gg! bgTb#????????????????### | | ???????????####+##########g # ####### | | ????????????????????????### ########+######### | | ?????????????????????????## # | | ?????????????????????????## # | | ?????????????????????????## """ """"""" # | | ?????????????????????????## """ "" + | | ????????????????????????### """ # | | ????????????????????????### b | | ????????????????????????## | | ????????????????????????## = % # | | ????????????????????????## = % ## | | ?????????????????? ????## %% " ## | | ???????????????## ????###g###### #### # ## | | ???????????????## ????### ###"" # #### # | | ??????????????? # ?????## #" = # # | | ??????????????? # ###??## #" * # # | | ??????????????? # ###??## #" * # | | ??????????????? # ##??## #" #/! ## | | ??????????????? + ##??## ## = # | | ??????????????? # ##??## ## # | | ??????????????? + ##??## ## " | | ??????????????? # ##??## ###""""""""""" "# " | | ?? # # ###### ### " "# " | +----------------------------------------------------+ Best States ------------- Heat Dissipation 84 Energy Generation 41 Energy Capacity 260 Matter Stores 300 Matter Capacity 300 Sight Range 24 Robot Scan Range 20 Terrain Scan Density 10 Jamming Range 16 Cloak Strength 4 Armor Coverage 600 Point Defense Rating 240 Evasion (%) 65 Targeting Accuracy 6 Melee Accuracy 16 Recoil Reduction 6 Offensive Hacking 57 Defensive Hacking 32 Trap Extractor Capacity 6 Item Schematics ----------------- Huge Storage Unit | -10/Materials | Hacked Combat Drone Bay | -7/Data Miner | Free Lgt. Regenerative Plating | -7/Data Miner | Free Cld. Cesium-ion Thruster | -7/Data Miner | Free Exp. Targeting Computer | -7/Data Miner | Free Antimatter Cannon | -7/Data Miner | Free Antigrav System | -7/Data Miner | Free Adv. System Shield | -7/Data Miner | Free Hvy. Shock Bomb Launcher | -7/Data Miner | Free Imp. Trap Scanner | -7/Data Miner | Free Imp. Launcher Guidance Computer | -7/Data Miner | Free Hvy. Gauss Cannon | -7/Data Miner | Free Mic. Nuclear Core | -6/Factory | Hacked Imp. Light Armor Plating | -6/Factory | Hacked Cloaking Device | -6/Factory | Hacked Imp. Kinecellerator | -6/Zion | Archive Lyr. Medium Armor Plating | -6/Zion | Archive Enh. Optical Array | -6/Zion | Archive Adv. Shield Generator | -6/Zion | Archive Imp. Thermal Shield | -6/Zion | Archive Mak. Hover Unit | -6/Zion | Archive Adv. Focal Shield | -6/Zion | Archive Power Amplifier | -6/Zion | Archive Remote Force Field | -6/Zion | Archive Plasma Rifle | -6/Zion | Archive Imp. Component Analysis Suite | -6/Zion | Archive Hvy. Flak Cannon | -6/Zion | Archive Adv. Terrain Scanner | -6/Zion | Archive Adv. Coolant Injector | -6/Zion | Archive Tiamat Missile Launcher | -6/Zion | Archive Nanoactuators | -5/Factory | Hacked Graphene Brace | -5/Factory | Hacked Exp. Sensor Array | -5/Factory | Scanalyzed Antimissile System | -4/Factory | Hacked Robot Schematics ------------------ G-50 Soldier | -7/Data Miner | Free B-48 Gladiator | -7/Data Miner | Free M-28 Smith | -7/Data Miner | Free H-66 Slayer | -7/Data Miner | Free E-15 Imp | -7/Data Miner | Free R-10 Processor | -6/Zion | Archive A-15 Conveyor | -6/Zion | Archive Fabricated ------------ Combat Drone Bay | x1 | -6/Factory Adv. Cloaking Device | x1 | -5/Factory | Preloaded Cld. Cesium-ion Thruster | x1 | -5/Factory Tiamat Missile Launcher | x1 | -5/Factory Alien Tech Used ----------------- Core Expander Achievements -------------- Fist Fight Challenges ------------ None Game ------ Seed RainbowResetBlade Manual? 0 Play Time 04:02:44 Cumulative 108.5 hours Start 2024.04.07 @ 23:16:21 End 2024.04.08 @ 05:23:12 Sessions 3 Manual Loads 0 Difficulty Rogue Special Mode None Game No. 61 Rogue 61 Adventurer 0 Explorer 0 Win Type - Total 4 Types 3/0/0/1/0/0/0/0/0 Lore% 56 Gallery% 73 Achievement% 49 Wizard Run 0 Options --------- Layout 2 ASCII 0 Keyboard 1 Movement Numpad Keybinds 0 Fullscreen 2 Font 32/Tamsyn Map View 50x44 Zoom Use 0% Tactical HUD 1 Map Filters NONE Filters NONE Steam 1 RUN: 1ab83239-e3ac-498e-987f-89d12954637e